[Event "47th GRE-chT 2019"]
[Site "Patra"]
[Date "2019.07.06"]
[Round "7.3"]
[White "Giannoulakis, Lampros"]
[Black "Karousos-Theodorakis, Nikolaos"]
[Result "1/2-1/2"]
[ECO "E20"]
[WhiteElo "2305"]
[BlackElo "2304"]
[Annotator "NA"]
[PlyCount "59"]
[EventDate "2019.07.02"]
[EventCountry "GRE"]
[SourceTitle "playchess.com"]
[Source "ChessBase"]
[SourceQuality "1"]
[TimeControl "5400+30"]

1. d4 {[%emt 0:00:24]} Nf6 {[%emt 0:00:00]} 2. c4 {[%emt 0:00:05]} e6 {[%emt 0:00:00]} 3. Nc3 {[%emt 0:00:05]} Bb4 {[%emt 0:00:00]} 4. f3 {[%emt 0:00:25]} c5 {[%emt 0:00:21]} 5. a3 {[%emt 0:00:11]} Ba5 {[%emt 0:01:04]} 6. dxc5 {[%emt 0:00:16]} Bxc3+ {[%emt 0:00:56]} 7. bxc3 {[%emt 0:00:05]} Qa5 {[%emt 0:02:47]} 8. e4 {[%emt 0:00:15]} Na6 {[%emt 0:07:20]} 9. Be3 {[%emt 0:18:09]} Nxc5 {[%emt 0:02:57]} 10. Ne2 {[%emt 0:11:57]} O-O {[%emt 0:06:16]} 11. Qb1 {[%emt 0:20:16]} d6 {[%emt 0:08:17]} 12. Qb5 {[%emt 0:05:14]} Qc7 {[%emt 0:02:36]} 13. Nd4 {[%emt 0:00:21]} Bd7 {[%emt 0:05:13]} 14. Qb4 {[%emt 0:03:07]} a5 {[%emt 0:04:25]} 15. Qb2 {[%emt 0:00:11]} d5 {[%emt 0:03:06]} 16. Nb5 {[%emt 0:06:42]} Bxb5 {[%emt 0:00:22]} 17. Qxb5 {[%emt 0:00:23]} Rac8 {[%emt 0:00:28]} 18. Bxc5 {[%emt 0:01:53]} Qxc5 {[%emt 0:00:06]} 19. Qxc5 {[%emt 0:00:04]} Rxc5 {[%emt 0:00:08]} 20. Rb1 {[%emt 0:04:43]} Rb8 {[%emt 0:02:38]} 21. exd5 {[%emt 0:02:34]} exd5 {[%emt 0:00:08]} 22. Rb5 {[%emt 0:01:25]} b6 {[%emt 0:01:34]} 23. Kd2 {[%emt 0:09:30]} Kf8 {[%emt 0:18:18]} 24. Be2 {[%emt 0:03:30]} Rxb5 {[%emt 0:02:06]} 25. cxb5 {[%emt 0:00:10]} Ke7 {[%emt 0:00:46]} 26. c4 {[%emt 0:07:01]} Kd6 {[%emt 0:02:30]} 27. cxd5 {[%emt 0:00:35]} Rc8 {[%emt 0:00:05]} 28. Bd3 {[%emt 0:00:40]} Nxd5 {[%emt 0:03:56]} 29. Be4 {[%emt 0:00:51]} Rc5 {[%emt 0:00:21]} 30. a4 {[%emt 0:02:46]} 1/2-1/2

[Event "47th GRE-chT 2019"]
[Site "Patra"]
[Date "2019.07.06"]
[Round "7.4"]
[White "Kalogeris, Ioannis"]
[Black "Georgiadis, Ioannis"]
[Result "1/2-1/2"]
[ECO "E12"]
[WhiteElo "2376"]
[BlackElo "2476"]
[Annotator "ChessBase"]
[PlyCount "75"]
[EventDate "2019.07.02"]
[EventCountry "GRE"]
[SourceTitle "playchess.com"]
[Source "ChessBase"]
[SourceQuality "1"]
[TimeControl "5400+30"]

1. d4 {[%emt 0:00:10]} Nf6 {[%emt 0:04:36]} 2. Nf3 {[%emt 0:00:58]} e6 {[%emt 0:00:20]} 3. c4 {[%emt 0:01:45]} b6 {[%emt 0:00:21]} 4. a3 {[%emt 0:00:30]} Bb7 {[%emt 0:00:40]} 5. Nc3 {[%emt 0:02:12]} g6 {[%emt 0:01:24]} 6. Bg5 {[%emt 0:03:25]} h6 {[%emt 0:00:45]} 7. Bh4 {[%emt 0:03:25]} Bg7 {[%emt 0:08:38]} 8. d5 {[%emt 0:05:20]} exd5 {[%emt 0:01:33]} 9. cxd5 {[%emt 0:01:21]} O-O {[%emt 0:01:03]} 10. e3 {[%emt 0:02:21]} Re8 {[%emt 0:01:28]} 11. Rc1 {[%emt 0:17:19]} a6 {[%emt 0:09:50]} 12. Be2 {[%emt 0:08:29]} c5 {[%emt 0:09:07]} 13. dxc6 {[%emt 0:02:43]} dxc6 {[%emt 0:07:13]} 14. Qxd8 {[%emt 0:00:14]} Rxd8 {[%emt 0:11:28]} 15. Nd2 {[%emt 0:02:47]} c5 {[%emt 0:20:16]} 16. Bf3 {[%emt 0:01:05]} Bxf3 {[%emt 0:00:11]} 17. gxf3 {[%emt 0:01:41]} Nbd7 {[%emt 0:03:50]} 18. Rc2 {[%emt 0:02:10]} b5 {[%emt 0:02:34]} 19. b3 {[%emt 0:08:18]} b4 {[%emt 0:01:44]} 20. axb4 {[%emt 0:00:12]} cxb4 {[%emt 0:03:00]} 21. Bxf6 {[%emt 0:02:29]} Nxf6 {[%emt 0:00:27]} 22. Na4 {[%emt 0:02:39]} Nd5 {[%emt 0:01:43]} 23. Ke2 {[%emt 0:02:39]} Rab8 {[%emt 0:02:08]} 24. Ne4 {[%emt 0:04:14]} a5 {[%emt 0:00:44]} 25. Rd1 {[%emt 0:07:00]} Nc3+ {[%emt 0:00:44]} 26. Naxc3 {[%emt 0:00:13]} bxc3 {[%emt 0:01:52]} 27. Rxd8+ {[%emt 0:00:13]} Rxd8 {[%emt 0:02:29]} 28. Nxc3 {[%emt 0:00:26]} Rb8 {[%emt 0:01:46]} 29. Nd5 {[%emt 0:00:31]} Rxb3 {[%emt 0:00:48]} 30. Rc8+ {[%emt 0:00:28]} Kh7 {[%emt 0:01:00]} 31. Ra8 {[%emt 0:00:29]} Rb5 {[%emt 0:00:44]} 32. Nc7 {[%emt 0:03:50]} Rb2+ {[%emt 0:00:01]} 33. Kf1 {[%emt 0:02:15]} Be5 {[%emt 0:01:11]} 34. Ra7 {[%emt 0:01:41]} Kg8 {[%emt 0:00:18]} 35. Ra8+ {[%emt 0:00:13]} Kh7 {[%emt 0:00:01]} 36. Ra7 {[%emt 0:08:08]} Kg8 {[%emt 0:00:06]} 37. Ra8+ {[%emt 0:00:07]} Kh7 {[%emt 0:00:07]} 38. Ra7 {[%emt 0:00:36]} 1/2-1/2

[Event "47th GRE-chT 2019"]
[Site "Patra"]
[Date "2019.07.06"]
[Round "7.4"]
[White "Balokas, Dimitrios"]
[Black "Tsekmes, Dimitrios"]
[Result "1-0"]
[ECO "B32"]
[WhiteElo "2206"]
[BlackElo "2172"]
[Annotator "NA"]
[PlyCount "97"]
[EventDate "2019.07.02"]
[EventCountry "GRE"]
[SourceTitle "playchess.com"]
[Source "ChessBase"]
[SourceQuality "1"]
[TimeControl "5400+30"]

1. e4 {[%emt 0:01:36]} c5 {[%emt 0:02:19]} 2. Nf3 {[%emt 0:00:28]} Nc6 {[%emt 0:00:06]} 3. d4 {[%emt 0:00:12]} cxd4 {[%emt 0:00:18]} 4. Nxd4 {[%emt 0:00:08]} Qb6 {[%emt 0:01:09]} 5. Nb3 {[%emt 0:00:10]} Nf6 {[%emt 0:00:10]} 6. Nc3 {[%emt 0:00:08]} e6 {[%emt 0:00:43]} 7. Bd3 {[%emt 0:02:30]} d6 {[%emt 0:01:06]} 8. O-O {[%emt 0:01:00]} Be7 {[%emt 0:00:45]} 9. Be3 {[%emt 0:00:27]} Qc7 {[%emt 0:00:18]} 10. f4 {[%emt 0:01:40]} a6 {[%emt 0:02:30]} 11. Qf3 {[%emt 0:01:30]} e5 {[%emt 0:07:20]} 12. Nd5 {[%emt 0:01:59]} Nxd5 {[%emt 0:01:08]} 13. exd5 {[%emt 0:00:02]} Nb4 {[%emt 0:01:49]} 14. fxe5 {[%emt 0:00:33]} O-O {[%emt 0:00:03]} 15. Bxh7+ {[%emt 0:25:15]} Kxh7 {[%emt 0:00:20]} 16. Qe4+ {[%emt 0:00:23]} Kg8 {[%emt 0:00:36]} 17. Qxb4 {[%emt 0:00:12]} dxe5 {[%emt 0:01:11]} 18. Bc5 {[%emt 0:00:21]} Bxc5+ {[%emt 0:04:00]} 19. Qxc5 {[%emt 0:00:54]} Qxc5+ {[%emt 0:00:46]} 20. Nxc5 {[%emt 0:00:02]} Bg4 {[%emt 0:01:12]} 21. h3 {[%emt 0:05:05]} Bh5 {[%emt 0:05:13]} 22. Rf5 {[%emt 0:02:31]} Bg6 {[%emt 0:00:54]} 23. Rxe5 {[%emt 0:00:09]} b6 {[%emt 0:06:45]} 24. Nb3 {[%emt 0:14:01]} Rfd8 {[%emt 0:05:34]} 25. c4 {[%emt 0:15:55]} b5 {[%emt 0:01:20]} 26. cxb5 {[%emt 0:02:08]} f6 {[%emt 0:02:28]} 27. Re7 {[%emt 0:02:45]} axb5 {[%emt 0:01:18]} 28. Rc1 {[%emt 0:05:27]} Rxd5 {[%emt 0:14:38]} 29. Rcc7 {[%emt 0:00:05]} Bb1 {[%emt 0:00:02]} 30. Rxg7+ {[%emt 0:00:32]} Kh8 {[%emt 0:00:02]} 31. a3 {[%emt 0:03:08]} Ba2 {[%emt 0:00:12]} 32. Rh7+ {[%emt 0:02:19]} Kg8 {[%emt 0:00:02]} 33. Rcg7+ {[%emt 0:00:44]} Kf8 {[%emt 0:00:07]} 34. Rg3 {[%emt 0:00:14]} Ra4 {[%emt 0:01:35]} 35. Kh2 {[%emt 0:01:59]} Rc4 {[%emt 0:00:31]} 36. Na5 {[%emt 0:04:27]} Rc2 {[%emt 0:01:59]} 37. h4 {[%emt 0:04:58]} Rd1 {[%emt 0:01:46]} 38. b3 {[%emt 0:01:30]} Bb1 {[%emt 0:01:51]} 39. Rb7 {[%emt 0:01:20]} Rcc1 {[%emt 0:01:47]} 40. Rf3 {[%emt 0:00:00]} f5 {[%emt 0:00:00]} 41. Rxb5 {[%emt 0:00:00]} Be4 {[%emt 0:00:00]} 42. Rf2 {[%emt 0:00:00]} Rh1+ {[%emt 0:00:00]} 43. Kg3 {[%emt 0:00:00]} Rc3+ {[%emt 0:00:00]} 44. Kf4 {[%emt 0:00:00]} Rxh4+ {[%emt 0:00:00]} 45. Kg5 {[%emt 0:00:00]} Rh2 {[%emt 0:00:00]} 46. Nc4 {[%emt 0:00:00]} Ke7 {[%emt 0:00:00]} 47. Re5+ {[%emt 0:00:00]} Kd7 {[%emt 0:00:00]} 48. Rd2+ {[%emt 0:00:00]} Kc8 {[%emt 0:00:00]} 49. Re8+ {[%emt 0:00:00]} 1-0

[Event "47th GRE-chT 2019"]
[Site "Patra"]
[Date "2019.07.06"]
[Round "7.5"]
[White "Kantane, Anna"]
[Black "Salahidou, Reveka"]
[Result "1-0"]
[ECO "B41"]
[WhiteElo "2288"]
[BlackElo "1971"]
[Annotator "NA"]
[PlyCount "67"]
[EventDate "2019.07.02"]
[EventCountry "GRE"]
[SourceTitle "playchess.com"]
[Source "ChessBase"]
[SourceQuality "1"]
[TimeControl "5400+30"]

1. e4 {[%emt 0:00:54]} c5 {[%emt 0:00:00]} 2. Nf3 {[%emt 0:00:10]} e6 {[%emt 0:00:00]} 3. d4 {[%emt 0:00:07]} cxd4 {[%emt 0:00:00]} 4. Nxd4 {[%emt 0:00:09]} a6 {[%emt 0:00:00]} 5. c4 {[%emt 0:00:10]} Nf6 {[%emt 0:00:00]} 6. Nc3 {[%emt 0:00:10]} Qc7 {[%emt 0:00:00]} 7. a3 {[%emt 0:00:11]} b6 {[%emt 0:00:01]} 8. Be3 {[%emt 0:00:28]} Bb7 {[%emt 0:00:07]} 9. f3 {[%emt 0:00:07]} d6 {[%emt 0:00:28]} 10. Be2 {[%emt 0:00:08]} Be7 {[%emt 0:00:04]} 11. O-O {[%emt 0:00:10]} O-O {[%emt 0:00:38]} 12. Qd2 {[%emt 0:00:09]} Nbd7 {[%emt 0:00:11]} 13. Rfc1 {[%emt 0:00:12]} Rac8 {[%emt 0:02:27]} 14. a4 {[%emt 0:00:11]} Bd8 {[%emt 0:18:47]} 15. a5 {[%emt 0:15:05]} Qb8 {[%emt 0:09:38]} 16. axb6 {[%emt 0:00:15]} Bxb6 {[%emt 0:00:38]} 17. b4 {[%emt 0:00:23]} Bc7 {[%emt 0:02:12]} 18. b5 {[%emt 0:23:35]} a5 {[%emt 0:03:11]} 19. Nc6 {[%emt 0:05:57]} Bxc6 {[%emt 0:00:21]} 20. bxc6 {[%emt 0:00:08]} Nc5 {[%emt 0:00:04]} 21. Rcb1 {[%emt 0:05:16]} Qa8 {[%emt 0:11:42]} 22. e5 {[%emt 0:08:34]} Ne8 {[%emt 0:02:55]} 23. Nb5 {[%emt 0:00:40]} Qxc6 {[%emt 0:15:36]} 24. Na7 {[%emt 0:00:55]} Qa8 {[%emt 0:00:20]} 25. Nxc8 {[%emt 0:01:34]} Qxc8 {[%emt 0:00:05]} 26. exd6 {[%emt 0:05:09]} Bxd6 {[%emt 0:00:40]} 27. Qxa5 {[%emt 0:00:36]} Nf6 {[%emt 0:05:33]} 28. Rb6 {[%emt 0:05:20]} Be7 {[%emt 0:05:34]} 29. Qb5 {[%emt 0:02:31]} Ncd7 {[%emt 0:01:17]} 30. Rc6 {[%emt 0:02:26]} Qe8 {[%emt 0:01:57]} 31. Ra7 {[%emt 0:04:08]} Ne5 {[%emt 0:06:38]} 32. Qxe5 {[%emt 0:06:14]} Qxc6 {[%emt 0:00:07]} 33. Rxe7 {[%emt 0:00:22]} Nd7 {[%emt 0:00:04]} 34. Qb5 {[%emt 0:01:54]} 1-0

[Event "47th GRE-chT 2019"]
[Site "Patra"]
[Date "2019.07.06"]
[Round "7.5"]
[White "Botsari, Anna-Maria"]
[Black "Zawadzka, Jolanta"]
[Result "1/2-1/2"]
[ECO "E61"]
[WhiteElo "2233"]
[BlackElo "2422"]
[Annotator "NA"]
[PlyCount "61"]
[EventDate "2019.07.02"]
[EventCountry "GRE"]
[SourceTitle "playchess.com"]
[Source "ChessBase"]
[SourceQuality "1"]
[TimeControl "5400+30"]

1. d4 {[%emt 0:05:03]} Nf6 {[%emt 0:00:00]} 2. c4 {[%emt 0:01:10]} g6 {[%emt 0:00:00]} 3. Nf3 {[%emt 0:00:04]} Bg7 {[%emt 0:00:00]} 4. e3 {[%emt 0:00:02]} O-O {[%emt 0:00:01]} 5. Be2 {[%emt 0:00:08]} d6 {[%emt 0:00:06]} 6. Nc3 {[%emt 0:00:03]} Bf5 {[%emt 0:00:10]} 7. O-O {[%emt 0:02:34]} a5 {[%emt 0:00:12]} 8. b3 {[%emt 0:06:07]} e5 {[%emt 0:01:01]} 9. dxe5 {[%emt 0:01:37]} dxe5 {[%emt 0:01:16]} 10. Ba3 {[%emt 0:01:06]} Qxd1 {[%emt 0:11:24]} 11. Raxd1 {[%emt 0:00:39]} Re8 {[%emt 0:00:18]} 12. Nb5 {[%emt 0:04:02]} Na6 {[%emt 0:01:50]} 13. Bb2 {[%emt 0:01:35]} Ne4 {[%emt 0:04:12]} 14. Bd3 {[%emt 0:12:19]} Bf6 {[%emt 0:24:19]} 15. g4 {[%emt 0:08:15]} Ng5 {[%emt 0:04:44]} 16. Nxg5 {[%emt 0:03:24]} Bxd3 {[%emt 0:00:12]} 17. Nxh7 {[%emt 0:02:54]} Kxh7 {[%emt 0:00:03]} 18. Rxd3 {[%emt 0:00:05]} e4 {[%emt 0:06:55]} 19. Rd2 {[%emt 0:00:21]} Bxb2 {[%emt 0:00:17]} 20. Rxb2 {[%emt 0:00:03]} Rad8 {[%emt 0:00:32]} 21. f3 {[%emt 0:04:11]} Rd7 {[%emt 0:09:09]} 22. Nc3 {[%emt 0:01:35]} Nc5 {[%emt 0:02:05]} 23. Nd5 {[%emt 0:04:20]} Kg7 {[%emt 0:00:54]} 24. g5 {[%emt 0:02:19]} Rh8 {[%emt 0:09:25]} 25. Rg2 {[%emt 0:02:27]} c6 {[%emt 0:07:50]} 26. Nf6 {[%emt 0:01:22]} exf3 {[%emt 0:00:20]} 27. Rxf3 {[%emt 0:02:33]} Rd1+ {[%emt 0:00:09]} 28. Rf1 {[%emt 0:01:05]} Rd3 {[%emt 0:03:46]} 29. Rf3 {[%emt 0:08:14]} Rd1+ {[%emt 0:00:07]} 30. Rf1 {[%emt 0:00:03]} Rd3 {[%emt 0:00:05]} 31. Rf3 {[%emt 0:00:30]} 1/2-1/2

[Event "47th GRE-chT 2019"]
[Site "Patra"]
[Date "2019.07.06"]
[Round "7.6"]
[White "Pasoglou, Ekaterini"]
[Black "Avramidou, Anastasia"]
[Result "1/2-1/2"]
[ECO "A48"]
[WhiteElo "1804"]
[BlackElo "2260"]
[Annotator "NA"]
[PlyCount "107"]
[EventDate "2019.07.02"]
[EventCountry "GRE"]
[SourceTitle "playchess.com"]
[Source "ChessBase"]
[SourceQuality "1"]
[TimeControl "5400+30"]

1. d4 {[%emt 0:05:34]} Nf6 {[%emt 0:00:00]} 2. Nf3 {[%emt 0:00:07]} g6 {[%emt 0:00:00]} 3. Bg5 {[%emt 0:00:09]} Bg7 {[%emt 0:00:00]} 4. Nbd2 {[%emt 0:01:24]} O-O {[%emt 0:02:21]} 5. c3 {[%emt 0:02:40]} d6 {[%emt 0:02:35]} 6. e4 {[%emt 0:03:34]} c6 {[%emt 0:01:36]} 7. Be2 {[%emt 0:01:08]} Qc7 {[%emt 0:03:19]} 8. h3 {[%emt 0:01:43]} e5 {[%emt 0:01:23]} 9. dxe5 {[%emt 0:00:09]} dxe5 {[%emt 0:03:29]} 10. Qc2 {[%emt 0:01:08]} Nbd7 {[%emt 0:03:38]} 11. Be3 {[%emt 0:04:06]} Re8 {[%emt 0:05:39]} 12. a4 {[%emt 0:19:22]} b6 {[%emt 0:05:36]} 13. O-O {[%emt 0:13:39]} Nf8 {[%emt 0:03:51]} 14. Rad1 {[%emt 0:05:48]} Nh5 {[%emt 0:07:53]} 15. Nc4 {[%emt 0:05:18]} Be6 {[%emt 0:15:36]} 16. Ng5 {[%emt 0:00:06]} Nf4 {[%emt 0:00:06]} 17. Nxe6 {[%emt 0:02:04]} Nxe2+ {[%emt 0:00:08]} 18. Qxe2 {[%emt 0:00:05]} Nxe6 {[%emt 0:01:01]} 19. g3 {[%emt 0:08:05]} Re7 {[%emt 0:20:46]} 20. f4 {[%emt 0:06:25]} exf4 {[%emt 0:00:36]} 21. gxf4 {[%emt 0:05:56]} Rd7 {[%emt 0:07:34]} 22. Qg4 {[%emt 0:05:10]} Rxd1 {[%emt 0:00:40]} 23. Rxd1 {[%emt 0:00:28]} Rd8 {[%emt 0:06:03]} 24. Rf1 {[%emt 0:02:09]} h5 {[%emt 0:01:37]} 25. Qg2 {[%emt 0:02:00]} b5 {[%emt 0:02:21]} 26. Na3 {[%emt 0:02:33]} b4 {[%emt 0:01:35]} 27. Nb1 {[%emt 0:00:28]} bxc3 {[%emt 0:02:14]} 28. bxc3 {[%emt 0:01:20]} Bh6 {[%emt 0:00:47]} 29. e5 {[%emt 0:00:52]} Rd3 {[%emt 0:01:17]} 30. Qe4 {[%emt 0:00:26]} Rxe3 {[%emt 0:00:04]} 31. Qxe3 {[%emt 0:00:04]} Bxf4 {[%emt 0:00:39]} 32. Rxf4 {[%emt 0:00:03]} Nxf4 {[%emt 0:00:21]} 33. Qxf4 {[%emt 0:00:03]} Qb6+ {[%emt 0:00:35]} 34. Kg2 {[%emt 0:00:06]} Qxb1 {[%emt 0:00:21]} 35. Qd4 {[%emt 0:01:08]} Qf5 {[%emt 0:00:45]} 36. Qxa7 {[%emt 0:00:28]} Qe4+ {[%emt 0:00:28]} 37. Kf2 {[%emt 0:01:12]} Qc2+ {[%emt 0:00:46]} 38. Kf3 {[%emt 0:00:32]} Qxc3+ {[%emt 0:00:05]} 39. Qe3 {[%emt 0:00:32]} Qc4 {[%emt 0:00:00]} 40. Qe4 {[%emt 0:00:00]} Qf1+ {[%emt 0:00:00]} 41. Kg3 {[%emt 0:00:00]} Qg1+ {[%emt 0:00:00]} 42. Kf4 {[%emt 0:00:00]} Qh2+ {[%emt 0:00:00]} 43. Kg5 {[%emt 0:00:00]} Kg7 {[%emt 0:00:00]} 44. Qf4 {[%emt 0:00:00]} Qg1+ {[%emt 0:00:00]} 45. Kh4 {[%emt 0:00:00]} c5 {[%emt 0:00:00]} 46. Qf6+ {[%emt 0:00:00]} Kg8 {[%emt 0:00:00]} 47. e6 {[%emt 0:00:00]} Qe1+ {[%emt 0:00:00]} 48. Kg5 {[%emt 0:00:00]} Qe3+ {[%emt 0:00:00]} 49. Kh4 {[%emt 0:00:02]} Qe4+ {[%emt 0:00:00]} 50. Kg5 {[%emt 0:00:06]} Qe3+ {[%emt 0:00:00]} 51. Kh4 {[%emt 0:00:14]} Qe4+ {[%emt 0:00:00]} 52. Kg5 {[%emt 0:00:13]} Qe3+ {[%emt 0:00:00]} 53. Kh4 {[%emt 0:02:26]} Qe4+ {[%emt 0:00:00]} 54. Kg5 {[%emt 0:00:38]} 1/2-1/2

[Event "47th GRE-chT 2019"]
[Site "Patra"]
[Date "2019.07.06"]
[Round "7.6"]
[White "Stratigi, Evangelia"]
[Black "Mastrakouli, Evagelia"]
[Result "1/2-1/2"]
[ECO "B30"]
[WhiteElo "1624"]
[BlackElo "1788"]
[Annotator "NA"]
[PlyCount "85"]
[EventDate "2019.07.02"]
[EventCountry "GRE"]
[SourceTitle "playchess.com"]
[Source "ChessBase"]
[SourceQuality "1"]
[TimeControl "5400+30"]

1. e4 {[%emt 0:00:00]} c5 {[%emt 0:00:07]} 2. Nf3 {[%emt 0:00:00]} Nc6 {[%emt 0:00:38]} 3. Bc4 {[%emt 0:00:37]} e6 {[%emt 0:00:15]} 4. O-O {[%emt 0:02:17]} a6 {[%emt 0:03:58]} 5. Re1 {[%emt 0:00:17]} b5 {[%emt 0:01:18]} 6. Bf1 {[%emt 0:00:36]} Nf6 {[%emt 0:01:48]} 7. c3 {[%emt 0:01:29]} c4 {[%emt 0:05:25]} 8. b3 {[%emt 0:10:54]} cxb3 {[%emt 0:05:20]} 9. axb3 {[%emt 0:01:09]} Qb6 {[%emt 0:03:48]} 10. d4 {[%emt 0:05:32]} d5 {[%emt 0:01:46]} 11. e5 {[%emt 0:05:06]} Nd7 {[%emt 0:01:47]} 12. b4 {[%emt 0:07:11]} Be7 {[%emt 0:09:42]} 13. Qd3 {[%emt 0:04:05]} Qc7 {[%emt 0:05:20]} 14. Na3 {[%emt 0:06:06]} Bb7 {[%emt 0:05:22]} 15. Ng5 {[%emt 0:08:22]} h6 {[%emt 0:02:13]} 16. Qh3 {[%emt 0:03:34]} Nb6 {[%emt 0:21:36]} 17. Bd3 {[%emt 0:06:38]} Rc8 {[%emt 0:04:46]} 18. Qh5 {[%emt 0:08:52]} Nd8 {[%emt 0:02:57]} 19. Bd2 {[%emt 0:06:55]} Bxg5 {[%emt 0:04:12]} 20. Bxg5 {[%emt 0:02:52]} Qxc3 {[%emt 0:01:38]} 21. Bxd8 {[%emt 0:01:58]} Rxd8 {[%emt 0:01:21]} 22. Bxb5+ {[%emt 0:03:04]} axb5 {[%emt 0:01:42]} 23. Nxb5 {[%emt 0:01:28]} Qxb4 {[%emt 0:00:15]} 24. Reb1 {[%emt 0:03:28]} Qe7 {[%emt 0:01:52]} 25. Ra7 {[%emt 0:02:35]} Nc8 {[%emt 0:05:53]} 26. Nd6+ {[%emt 0:01:57]} Rxd6 {[%emt 0:04:37]} 27. Rbxb7 {[%emt 0:02:10]} Rc6 {[%emt 0:02:14]} 28. Rxe7+ {[%emt 0:00:36]} Nxe7 {[%emt 0:00:03]} 29. h3 {[%emt 0:00:57]} Ng6 {[%emt 0:01:29]} 30. Qd1 {[%emt 0:01:14]} O-O {[%emt 0:00:12]} 31. g3 {[%emt 0:01:21]} Rfc8 {[%emt 0:00:18]} 32. Kg2 {[%emt 0:00:29]} Rc1 {[%emt 0:01:08]} 33. Qf3 {[%emt 0:01:22]} Rf8 {[%emt 0:00:41]} 34. Qa3 {[%emt 0:00:28]} Rc4 {[%emt 0:00:14]} 35. Qa1 {[%emt 0:00:32]} f6 {[%emt 0:00:42]} 36. exf6 {[%emt 0:00:46]} Rxf6 {[%emt 0:00:34]} 37. Ra8+ {[%emt 0:00:27]} Kh7 {[%emt 0:00:17]} 38. Ra2 {[%emt 0:00:50]} Ne7 {[%emt 0:00:31]} 39. Ra4 {[%emt 0:00:26]} Rc2 {[%emt 0:00:29]} 40. Qf1 {[%emt 0:00:00]} Nf5 {[%emt 0:00:00]} 41. Qd3 {[%emt 0:00:00]} Rb2 {[%emt 0:00:00]} 42. g4 {[%emt 0:00:00]} Rg6 {[%emt 0:00:00]} 43. Kf1 {[%emt 0:00:00]} 1/2-1/2

[Event "47th GRE-chT 2019"]
[Site "Patra"]
[Date "2019.07.06"]
[Round "7.7"]
[White "Arapkoule, Eirini"]
[Black "Pasoglou, Nikoleta"]
[Result "0-1"]
[ECO "E14"]
[WhiteElo "1370"]
[BlackElo "1258"]
[Annotator "NA"]
[PlyCount "52"]
[EventDate "2019.07.02"]
[EventCountry "GRE"]
[SourceTitle "playchess.com"]
[Source "ChessBase"]
[SourceQuality "1"]
[TimeControl "5400+30"]

1. d4 {[%emt 0:00:00]} Nf6 {[%emt 0:00:00]} 2. Nf3 {[%emt 0:00:00]} e6 {[%emt 0:00:00]} 3. e3 {[%emt 0:00:01]} b6 {[%emt 0:00:02]} 4. Bd3 {[%emt 0:00:28]} Bb7 {[%emt 0:00:09]} 5. O-O {[%emt 0:00:21]} d5 {[%emt 0:00:11]} 6. b3 {[%emt 0:00:18]} Bd6 {[%emt 0:00:21]} 7. Bb2 {[%emt 0:00:30]} O-O {[%emt 0:00:17]} 8. Nbd2 {[%emt 0:00:37]} Ne4 {[%emt 0:01:05]} 9. c4 {[%emt 0:00:47]} Nd7 {[%emt 0:01:34]} 10. Qe2 {[%emt 0:01:16]} f5 {[%emt 0:05:11]} 11. Ne5 {[%emt 0:03:27]} Bxe5 {[%emt 0:05:56]} 12. dxe5 {[%emt 0:00:18]} Ndc5 {[%emt 0:16:18]} 13. cxd5 {[%emt 0:08:55]} Nxd2 {[%emt 0:03:04]} 14. Qxd2 {[%emt 0:10:51]} Qxd5 {[%emt 0:00:17]} 15. f3 {[%emt 0:03:38]} Qxd3 {[%emt 0:01:07]} 16. Qxd3 {[%emt 0:00:10]} Nxd3 {[%emt 0:00:04]} 17. Ba3 {[%emt 0:00:19]} Rfd8 {[%emt 0:00:47]} 18. f4 {[%emt 0:00:37]} Rd7 {[%emt 0:04:07]} 19. Rfd1 {[%emt 0:00:51]} Rad8 {[%emt 0:00:22]} 20. Rd2 {[%emt 0:02:22]} Nxe5 {[%emt 0:03:37]} 21. Rxd7 {[%emt 0:00:10]} Nxd7 {[%emt 0:00:03]} 22. Rd1 {[%emt 0:00:14]} Bc6 {[%emt 0:00:54]} 23. Rc1 {[%emt 0:00:25]} Nb8 {[%emt 0:01:04]} 24. Bb4 {[%emt 0:01:17]} a5 {[%emt 0:03:31]} 25. Bc3 {[%emt 0:00:56]} Be4 {[%emt 0:03:19]} 26. Be5 {[%emt 0:00:39]} Na6 {[%emt 0:00:16]} 0-1

[Event "47th GRE-chT 2019"]
[Site "Patra"]
[Date "2019.07.06"]
[Round "7.7"]
[White "Giannoulaki, Ermofili"]
[Black "Kaliontzaki, Argyro Evanthia"]
[Result "1/2-1/2"]
[ECO "D05"]
[WhiteElo "1269"]
[BlackElo "1324"]
[Annotator "NA"]
[PlyCount "82"]
[EventDate "2019.07.02"]
[EventCountry "GRE"]
[SourceTitle "playchess.com"]
[Source "ChessBase"]
[SourceQuality "1"]
[TimeControl "5400+30"]

1. d4 {[%emt 0:00:24]} Nf6 {[%emt 0:00:00]} 2. Nf3 {[%emt 0:00:45]} e6 {[%emt 0:00:00]} 3. e3 {[%emt 0:00:03]} d5 {[%emt 0:00:00]} 4. Bd3 {[%emt 0:00:15]} Bd6 {[%emt 0:00:07]} 5. b3 {[%emt 0:00:11]} O-O {[%emt 0:00:42]} 6. O-O {[%emt 0:00:08]} b6 {[%emt 0:00:32]} 7. Bb2 {[%emt 0:00:19]} Bb7 {[%emt 0:00:34]} 8. Nbd2 {[%emt 0:00:15]} c5 {[%emt 0:03:20]} 9. c4 {[%emt 0:00:19]} cxd4 {[%emt 0:02:03]} 10. exd4 {[%emt 0:00:09]} dxc4 {[%emt 0:03:15]} 11. bxc4 {[%emt 0:00:10]} Nc6 {[%emt 0:03:56]} 12. Ng5 {[%emt 0:09:31]} h6 {[%emt 0:06:40]} 13. Nge4 {[%emt 0:00:59]} Be7 {[%emt 0:01:03]} 14. Nf3 {[%emt 0:06:06]} Nb4 {[%emt 0:11:30]} 15. Nxf6+ {[%emt 0:00:56]} Bxf6 {[%emt 0:00:05]} 16. Be2 {[%emt 0:00:19]} Qd7 {[%emt 0:07:57]} 17. Ne5 {[%emt 0:15:42]} Bxe5 {[%emt 0:05:17]} 18. dxe5 {[%emt 0:00:08]} Rfd8 {[%emt 0:01:06]} 19. Qb3 {[%emt 0:06:55]} Na6 {[%emt 0:03:03]} 20. Rfd1 {[%emt 0:04:16]} Qc7 {[%emt 0:01:57]} 21. Qe3 {[%emt 0:10:36]} Rxd1+ {[%emt 0:10:56]} 22. Rxd1 {[%emt 0:00:16]} Rd8 {[%emt 0:00:13]} 23. Rxd8+ {[%emt 0:00:45]} Qxd8 {[%emt 0:00:06]} 24. Ba3 {[%emt 0:00:40]} Qd7 {[%emt 0:02:00]} 25. Bd6 {[%emt 0:01:43]} Qa4 {[%emt 0:02:10]} 26. Qb3 {[%emt 0:00:19]} Bc6 {[%emt 0:05:55]} 27. Kf1 {[%emt 0:13:19]} Nc5 {[%emt 0:03:01]} 28. Bxc5 {[%emt 0:04:56]} bxc5 {[%emt 0:00:10]} 29. Qxa4 {[%emt 0:01:01]} Bxa4 {[%emt 0:00:08]} 30. Ke1 {[%emt 0:00:53]} Kf8 {[%emt 0:00:54]} 31. Kd2 {[%emt 0:01:10]} Ke7 {[%emt 0:03:04]} 32. Kc3 {[%emt 0:01:26]} f6 {[%emt 0:07:17]} 33. exf6+ {[%emt 0:02:22]} gxf6 {[%emt 0:00:31]} 34. Bf3 {[%emt 0:01:43]} Kd6 {[%emt 0:01:39]} 35. Bb7 {[%emt 0:01:47]} Kc7 {[%emt 0:07:34]} 36. Ba6 {[%emt 0:01:17]} Kb6 {[%emt 0:01:58]} 37. Bc8 {[%emt 0:00:21]} e5 {[%emt 0:01:28]} 38. Kd3 {[%emt 0:05:04]} Bc6 {[%emt 0:01:55]} 39. g3 {[%emt 0:01:58]} Ka5 {[%emt 0:01:07]} 40. Kc3 {[%emt 0:00:00]} Ka4 {[%emt 0:00:00]} 41. Kb2 {[%emt 0:00:00]} Kb4 {[%emt 0:00:00]} 1/2-1/2